lending/lending_fUSD_20241103
["ID","MTS","AMOUNT","RATE_DAILY","PERIOD"]
[341207529,1730646668713,-500.0,0.00037808,2]
[341207530,1730646668722,-500.0,0.00037808,2]
[341207531,1730646668731,-500.0,0.00037808,2]
[341207532,1730646668741,-500.0,0.00037808,2]
[341207533,1730646668750,-500.0,0.00037808,2]
[341207534,1730646668760,-500.0,0.00037808,2]
[341207535,1730646668769,-500.0,0.00037808,2]
[341207536,1730646668778,-500.0,0.00037808,2]
[341207537,1730646668787,-503.75858989,0.00037808,2]
[341207538,1730646668797,-500.0,0.00037808,2]
[341207539,1730646668805,-573.74243629,0.00037808,2]
[341207540,1730646668815,-500.0,0.00037808,2]
[341207541,1730646668824,-588.89475496,0.00037808,2]
[341207542,1730646668834,-522.3325958,0.00037808,2]
[341207543,1730646668846,-438.09459305,0.00037808,2]
[341207544,1730646668855,-500.0,0.00037808,2]
[341207545,1730646668865,-500.0,0.00037808,2]
[341207546,1730646668874,-508.62392846,0.00037808,2]
[341207547,1730646668884,-500.0,0.00037808,2]
[341207548,1730646668893,-519.54596861,0.00037808,2]
[341207549,1730646668903,-500.0,0.00037808,2]
[341207550,1730646668913,-320.93298726,0.00037808,2]
[341207551,1730646668922,-500.0,0.00037808,2]
[341207552,1730646668931,-500.0,0.00037808,2]
[341207553,1730646668940,-500.0,0.00037808,2]
[341207554,1730646668949,-500.0,0.00037808,2]
[341207555,1730646668958,-500.0,0.00037808,2]
[341207556,1730646668967,-500.0,0.00037808,2]
[341207557,1730646668977,-500.0,0.00037808,2]
[341207558,1730646668987,-578.11019923,0.00037808,2]
[341207559,1730646668996,-500.0,0.00037808,2]
[341207560,1730646669005,-509.19944921,0.00037808,2]
[341207561,1730646669015,-500.0,0.00037808,2]
[341207562,1730646669024,-2000.0,0.00037808,2]
[341207563,1730646669032,-561.18524322,0.00037808,2]
[341207564,1730646669042,-500.0,0.00037808,2]
[341207565,1730646669050,-500.0,0.00037808,2]
[341207566,1730646669059,-509.64898885,0.00037808,2]
[341207567,1730646669068,-500.0,0.00037808,2]
[341207568,1730646669077,-500.0,0.00037808,2]
[341207569,1730646669086,-518.80623579,0.00037808,2]
[341207570,1730646669101,-500.0,0.00037808,2]
[341207571,1730646669110,-500.0,0.00037808,2]
[341207572,1730646669119,-517.98170837,0.00037808,2]
[341207573,1730646669128,-500.0,0.00037808,2]
[341207574,1730646669137,-500.0,0.00037808,2]
[341207575,1730646669145,-503.97169127,0.00037808,2]
[341207576,1730646669154,-500.0,0.00037808,2]
[341207577,1730646669163,-522.62717217,0.00037808,2]
[341207578,1730646669172,-500.0,0.00037808,2]
[341207579,1730646669182,-529.56694805,0.00037808,2]
[341207580,1730646669269,-506.83143909,0.00037808,2]
[341207581,1730646669278,-525.89021613,0.00037808,2]
[341207582,1730646669289,-514.04131446,0.00037808,2]
[341207583,1730646669299,-500.0,0.00037808,2]
[341207584,1730646669308,-500.0,0.00037808,2]
[341207585,1730646669318,-500.0,0.00037808,2]
[341207586,1730646669327,-500.0,0.00037808,2]
[341207587,1730646669336,-521.00614318,0.00037808,2]
[341207588,1730646669350,-500.0,0.00037808,2]
[341207589,1730646669359,-566.76280555,0.00037808,2]
[341207590,1730646669369,-500.0,0.00037808,2]
[341207591,1730646669378,-500.0,0.00037808,2]
[341207592,1730646669387,-500.0,0.00037808,2]
[341207593,1730646669396,-500.0,0.00037808,2]
[341207594,1730646669406,-536.41154112,0.00037808,2]
[341207595,1730646669415,-538.06566702,0.00037808,2]
[341207596,1730646669424,-500.0,0.00037808,2]
[341207597,1730646669433,-604.60155849,0.00037808,2]
[341207598,1730646669442,-413.23486989,0.00037808,2]
[341207599,1730646669452,-500.0,0.00037808,2]
[341207600,1730646669461,-630.64215182,0.00037808,2]
[341207601,1730646669470,-500.0,0.00037808,2]
[341207602,1730646669479,-538.43752506,0.00037808,2]
[341207603,1730646669488,-500.0,0.00037808,2]
[341207604,1730646669498,-526.48515655,0.00037808,2]
[341207605,1730646669507,-508.38166794,0.00037808,2]
[341207606,1730646669516,-500.0,0.00037808,2]
[341207607,1730646669526,-500.0,0.00037808,2]
[341207608,1730646669535,-500.0,0.00037808,2]
[341207609,1730646669545,-212.93084121,0.00037808,2]
[341207610,1730646669554,-500.0,0.00037808,2]
[341207611,1730646669563,-525.77414242,0.00037808,2]
[341207612,1730646669572,-500.0,0.00037808,2]
[341207613,1730646669582,-557.74178352,0.00037808,2]
[341207614,1730646669597,-503.73099382,0.00037808,2]
[341207615,1730646669607,-539.33341341,0.00037808,2]
[341207616,1730646669616,-507.43022679,0.00037808,2]
[341207617,1730646669625,-1281.51,0.00037808,2]
[341207618,1730646669635,-510.48312412,0.00037808,2]
[341207619,1730646669644,-500.0,0.00037808,2]
[341207620,1730646669653,-500.0,0.00037808,2]
[341207621,1730646669662,-250.0,0.00037808,2]
[341207622,1730646669671,-500.0,0.00037808,2]
[341207623,1730646669681,-500.0,0.00037808,2]
[341207624,1730646669690,-527.15839418,0.00037808,2]
[341207625,1730646669699,-500.0,0.00037808,2]
[341207626,1730646669708,-298.84628232,0.00037808,2]
[341207627,1730646669718,-500.0,0.00037808,2]
[341207628,1730646669727,-500.0,0.00037808,2]
[341207629,1730646669737,-500.0,0.00037808,2]
[341207630,1730646669746,-500.0,0.00037808,2]
[341207631,1730646669755,-500.0,0.00037808,2]
[341207632,1730646669764,-557.60229381,0.00037808,2]
[341207633,1730646669774,-506.89706155,0.00037808,2]
[341207634,1730646669783,-500.0,0.00037808,2]
[341207635,1730646669793,-500.0,0.00037808,2]
[341207636,1730646669802,-542.40482178,0.00037808,2]
[341207637,1730646669811,-524.09098458,0.00037808,2]
[341207638,1730646669820,-520.4598506,0.00037808,2]
[341207639,1730646669829,-500.0,0.00037808,2]
[341207640,1730646669838,-510.299514,0.00037808,2]
[341207641,1730646669852,-540.75366706,0.00037808,2]
[341207642,1730646669861,-500.0,0.00037808,2]
[341207643,1730646669870,-500.0,0.00037808,2]
[341207644,1730646669879,-500.0,0.00037808,2]
[341207645,1730646669890,-798.34,0.00037808,2]
[341207646,1730646669899,-539.63575592,0.00037808,2]
[341207647,1730646669908,-508.84714349,0.00037808,2]
[341207648,1730646669917,-517.87248884,0.00037808,2]
[341207649,1730646669926,-510.24040718,0.00037808,2]
[341207650,1730646669935,-500.0,0.00037808,2]
[341207651,1730646669945,-500.0,0.00037808,2]
[341207652,1730646669954,-331.59947723,0.00037808,2]
[341207653,1730646669963,-512.10433496,0.00037808,2]
[341207654,1730646669979,-500.0,0.00037808,2]
[341207655,1730646669996,-500.0,0.00037808,2]
[341207656,1730646670010,-571.67771747,0.00037808,2]
[341207657,1730646670027,-525.36988749,0.00037808,2]
[341207658,1730646670044,-500.0,0.00037808,2]
[341207659,1730646670060,-503.78400079,0.00037808,2]
[341207660,1730646670075,-500.0,0.00037808,2]
[341207661,1730646670094,-510.11946598,0.00037808,2]
[341207662,1730646670108,-523.50748038,0.00037808,2]
[341207663,1730646670122,-500.0,0.00037808,2]
[341207664,1730646670137,-500.0,0.00037808,2]
[341207665,1730646670153,-500.0,0.00037808,2]
[341207666,1730646670172,-515.79190026,0.00037808,2]
[341207667,1730646670184,-197.8093608,0.00037808,2]
[341207668,1730646670198,-559.94317467,0.00037808,2]
[341207669,1730646670213,-500.0,0.00037808,2]
[341207670,1730646670228,-500.0,0.00037808,2]
[341207671,1730646670243,-535.97416674,0.00037808,2]
[341207672,1730646670259,-500.0,0.00037808,2]
[341207673,1730646670274,-1672.57,0.00037808,2]
[341207674,1730646670287,-500.0,0.00037808,2]
[341207675,1730646670302,-500.0,0.00037808,2]
[341207676,1730646670316,-500.0,0.00037808,2]
[341207677,1730646670330,-500.0,0.00037808,2]
[341207678,1730646670344,-500.0,0.00037808,2]
[341207679,1730646670357,-517.96129928,0.00037808,2]
[341207680,1730646670372,-232.67370471,0.00037808,2]
[341207681,1730646670385,-500.0,0.00037808,2]
[341207682,1730646670400,-547.58359945,0.00037808,2]
[341207683,1730646670413,-509.79052535,0.00037808,2]
[341207684,1730646670427,-294.94196134,0.00037808,2]
[341207685,1730646670440,-500.0,0.00037808,2]
[341207686,1730646670453,-150.49713759,0.00037808,2]
[341207687,1730646670466,-505.06383595,0.00037808,2]
[341207688,1730646670479,-500.0,0.00037808,2]
[341207689,1730646670492,-500.0,0.00037808,2]
[341207690,1730646670505,-500.0,0.00037808,2]
[341207691,1730646670518,-160.46184788,0.00037808,2]
[341207692,1730646670531,-500.0,0.00037808,2]
[341207693,1730646670544,-500.0,0.00037808,2]
[341207694,1730646670557,-504.54625732,0.00037808,2]
[341207695,1730646670569,-150.0,0.00037808,2]
[341207696,1730646670582,-500.0,0.00037808,2]
[341207697,1730646670598,-500.0,0.00037808,2]
[341207698,1730646670611,-500.0,0.00037808,2]
[341207699,1730646670624,-500.0,0.00037808,2]
[341207700,1730646670637,-500.0,0.00037808,2]
[341207701,1730646670650,-500.0,0.00037808,2]
[341207702,1730646670664,-188.90747316,0.00037808,2]
[341207703,1730646670677,-500.0,0.00037808,2]
[341207704,1730646670690,-527.02576409,0.00037808,2]
[341207705,1730646670704,-506.19700045,0.00037808,2]
[341207706,1730646670718,-500.0,0.00037808,2]
[341207707,1730646670731,-500.0,0.00037808,2]
[341207708,1730646670744,-507.55395502,0.00037808,2]
[341207709,1730646670757,-500.0,0.00037808,2]
[341207710,1730646670770,-500.0,0.00037808,2]
[341207711,1730646670783,-200.0,0.00037808,2]
[341207712,1730646670796,-500.0,0.00037808,2]
[341207713,1730646670810,-500.0,0.00037808,2]
[341207714,1730646670823,-189.53788579,0.00037808,2]
[341207715,1730646670837,-500.0,0.00037808,2]
[341207716,1730646670852,-527.76449111,0.00037808,2]
[341207717,1730646670865,-500.0,0.00037808,2]
[341207718,1730646670878,-500.0,0.00037808,2]
[341207719,1730646670892,-500.0,0.00037808,2]
[341207720,1730646670906,-500.0,0.00037808,2]
[341207721,1730646670919,-500.0,0.00037808,2]
[341207722,1730646670933,-500.0,0.00037808,2]
[341207723,1730646670947,-500.0,0.00037808,2]
[341207724,1730646670960,-500.0,0.00037808,2]
[341207725,1730646670973,-500.0,0.00037808,2]
[341207726,1730646671108,-500.0,0.00037808,2]
[341207727,1730646671120,-500.0,0.00037808,2]
[341207728,1730646671129,-506.46531039,0.00037808,2]
[341207729,1730646671138,-500.0,0.00037808,2]
[341207730,1730646671147,-500.0,0.00037808,2]
[341207731,1730646671157,-500.0,0.00037808,2]
[341207732,1730646671166,-500.0,0.00037808,2]
[341207733,1730646671175,-500.0,0.00037808,2]
[341207734,1730646671184,-516.92354284,0.00037808,2]
[341207735,1730646671193,-500.0,0.00037808,2]
[341207736,1730646671202,-516.45169289,0.00037808,2]
[341207737,1730646671211,-500.0,0.00037808,2]
[341207738,1730646671220,-505.83854097,0.00037808,2]
[341207739,1730646671229,-603.99069594,0.00037808,2]
[341207740,1730646671238,-503.91,0.00037808,2]
[341207741,1730646671247,-525.0776351,0.00037808,2]
[341207742,1730646671256,-500.0,0.00037808,2]
[341207743,1730646671265,-500.0,0.00037808,2]
[341207744,1730646671274,-500.0,0.00037808,2]
[341207745,1730646671283,-515.71168587,0.00037808,2]
[341207746,1730646671295,-514.014704,0.00037808,2]
[341207747,1730646671304,-500.0,0.00037808,2]
[341207748,1730646671313,-518.59457671,0.00037808,2]
[341207749,1730646671322,-500.0,0.00037808,2]
[341207750,1730646671331,-500.0,0.00037808,2]
[341207751,1730646671343,-500.0,0.00037808,2]
[341207752,1730646671352,-500.0,0.00037808,2]
[341207753,1730646671362,-500.0,0.00037808,2]
[341207754,1730646671371,-500.0,0.00037808,2]
[341207755,1730646671381,-500.0,0.00037808,2]
[341207756,1730646671390,-500.0,0.00037808,2]
[341207757,1730646671399,-561.12454006,0.00037808,2]
[341207758,1730646671408,-500.0,0.00037808,2]
[341207759,1730646671418,-500.0,0.00037808,2]
[341207760,1730646671427,-500.0,0.00037808,2]
[341207761,1730646671437,-500.0,0.00037808,2]
[341207762,1730646671448,-500.0,0.00037808,2]
[341207763,1730646671458,-500.0,0.00037808,2]
[341207764,1730646671467,-500.0,0.00037808,2]
[341207765,1730646671477,-500.0,0.00037808,2]
[341207766,1730646671487,-500.0,0.00037808,2]
[341207767,1730646671497,-507.65861212,0.00037808,2]
[341207768,1730646671507,-500.0,0.00037808,2]
[341207769,1730646671516,-536.40250274,0.00037808,2]
[341207770,1730646671526,-166.0266794,0.00037808,2]
[341207771,1730646671535,-500.0,0.00037808,2]
[341207772,1730646671545,-500.0,0.00037808,2]
[341207773,1730646671555,-500.0,0.00037808,2]
[341207774,1730646671565,-500.0,0.00037808,2]
[341207775,1730646671574,-1000.0,0.00037808,89]
[341207776,1730646671584,-500.0,0.00037808,2]
[341207777,1730646671594,-607.75709833,0.00037808,2]
[341207778,1730646671604,-500.0,0.00037808,2]
[341207779,1730646671614,-500.0,0.00037808,2]
[341207780,1730646671623,-511.27335045,0.00037808,2]
[341207781,1730646671633,-500.0,0.00037808,2]
[341207782,1730646671643,-500.0,0.00037808,2]
[341207783,1730646671653,-500.0,0.00037808,2]
[341207784,1730646671662,-500.0,0.00037808,2]
[341207785,1730646671672,-513.38,0.00037808,2]
[341207786,1730646671682,-500.0,0.00037808,2]
[341207787,1730646671691,-500.0,0.00037808,2]
[341207788,1730646671701,-520.68582657,0.00037808,2]
[341207789,1730646671711,-500.0,0.00037808,2]
[341207790,1730646671720,-500.0,0.00037808,2]
[341207791,1730646671731,-500.0,0.00037808,2]
[341207792,1730646671740,-500.0,0.00037808,2]
[341207793,1730646671750,-510.6148438,0.00037808,2]
[341207794,1730646671760,-500.0,0.00037808,2]
[341207795,1730646671770,-500.0,0.00037808,2]
[341207796,1730646671779,-599.13627847,0.00037808,2]
[341207797,1730646671789,-500.0,0.00037808,2]
[341207798,1730646671799,-500.0,0.00037808,2]
[341207799,1730646671808,-500.0,0.00037808,2]
[341207800,1730646671818,-500.0,0.00037808,2]
[341207801,1730646671827,-523.89392467,0.00037808,2]
[341207802,1730646671837,-500.0,0.00037808,2]
[341207803,1730646671848,-265.70658102,0.00037808,2]
[341207804,1730646671859,-500.0,0.00037808,2]
[341207805,1730646671869,-402.8135253,0.00037808,2]
[341207806,1730646671878,-500.0,0.00037808,2]
[341207807,1730646671888,-639.09455627,0.00037808,2]
[341207808,1730646671898,-500.0,0.00037808,2]
[341207809,1730646671908,-544.72460227,0.00037808,2]
[341207810,1730646671917,-532.57503242,0.00037808,2]
[341207811,1730646671927,-500.0,0.00037808,2]
[341207812,1730646671936,-500.0,0.00037808,2]
[341207813,1730646671946,-500.0,0.00037808,2]
[341207814,1730646671955,-500.0,0.00037808,2]
[341207815,1730646671964,-513.08820206,0.00037808,2]
[341207816,1730646671973,-495.54407007,0.00037808,2]
[341207817,1730646671983,-500.0,0.00037808,2]
[341207818,1730646671994,-529.90547522,0.00037808,2]
[341207819,1730646672004,-500.0,0.00037808,2]
[341207820,1730646672013,-500.0,0.00037808,2]
[341207821,1730646672024,-500.0,0.00037808,2]
[341207822,1730646672035,-500.0,0.00037808,2]
[341207823,1730646672044,-517.84946599,0.00037808,2]
[341207824,1730646672055,-500.0,0.00037808,2]
[341207825,1730646672064,-512.2058662,0.00037808,2]
[341207826,1730646672074,-500.0,0.00037808,2]
[341207827,1730646672083,-2000.0,0.00037808,2]
[341207828,1730646672093,-500.0,0.00037808,2]
[341207829,1730646672102,-533.99359223,0.00037808,2]
[341207830,1730646672111,-500.0,0.00037808,2]
[341207831,1730646672120,-500.0,0.00037808,2]
[341207832,1730646672129,-500.0,0.00037808,2]
[341207833,1730646672139,-500.0,0.00037808,2]
[341207834,1730646672148,-500.0,0.00037808,2]
[341207835,1730646672158,-500.0,0.00037808,2]
[341207836,1730646672168,-500.0,0.00037808,2]
[341207837,1730646672178,-290.96228197,0.00037808,2]
[341207838,1730646672187,-500.0,0.00037808,2]
[341207839,1730646672196,-500.0,0.00037808,2]
[341207840,1730646672206,-500.0,0.00037808,2]
[341207841,1730646672216,-500.0,0.00037808,2]
[341207842,1730646672227,-500.0,0.00037808,2]
[341207843,1730646672236,-500.0,0.00037808,2]
[341207844,1730646672246,-571.16756911,0.00037808,2]
[341207845,1730646672255,-500.0,0.00037808,2]
[341207846,1730646672264,-500.0,0.00037808,2]
[341207847,1730646672273,-641.85780402,0.00037808,2]
[341207848,1730646672282,-500.0,0.00037808,2]
[341207849,1730646672294,-602.35787157,0.00037808,2]
[341207850,1730646672303,-500.0,0.00037808,2]
[341207851,1730646672312,-500.0,0.00037808,2]
[341207852,1730646672321,-565.25708682,0.00037808,2]
[341207853,1730646672332,-500.0,0.00037808,2]
[341207854,1730646672341,-500.0,0.00037808,2]
[341207855,1730646672351,-500.0,0.00037808,2]
[341207856,1730646672361,-500.0,0.00037808,2]
[341207857,1730646672370,-514.64010447,0.00037808,2]
[341207858,1730646672380,-352.35064236,0.00037808,2]
[341207859,1730646672389,-518.25200981,0.00037808,2]
[341207860,1730646672399,-500.0,0.00037808,2]
[341207861,1730646672409,-527.63709143,0.00037808,2]
[341207862,1730646672418,-1147.15,0.00037808,2]
[341207863,1730646672427,-500.0,0.00037808,2]
[341207864,1730646672437,-534.9189432,0.00037808,2]
[341207865,1730646672447,-500.0,0.00037808,2]
[341207866,1730646672457,-500.0,0.00037808,2]
[341207867,1730646672467,-908.15,0.00037808,2]
[341207868,1730646672476,-500.0,0.00037808,2]
[341207869,1730646672485,-500.0,0.00037808,2]
[341207870,1730646672494,-530.67440878,0.00037808,2]
[341207871,1730646672503,-500.0,0.00037808,2]
[341207872,1730646672513,-10956.67,0.00037808,2]
[341207873,1730646672522,-541.73517825,0.00037808,2]
[341207874,1730646672532,-517.31271419,0.00037808,2]
[341207875,1730646672541,-294.90471881,0.00037808,2]
[341207876,1730646672550,-500.0,0.00037808,2]
[341207877,1730646672560,-500.0,0.00037808,2]
[341207878,1730646672570,-500.0,0.00037808,2]
[341207879,1730646672580,-500.0,0.00037808,2]
[341207880,1730646672590,-500.0,0.00037808,2]
[341207881,1730646672603,-500.0,0.00037808,2]
[341207882,1730646672612,-500.0,0.00037808,2]
[341207883,1730646672622,-500.0,0.00037808,2]
[341207884,1730646672631,-602.99,0.00037808,2]
[341207885,1730646672640,-500.0,0.00037808,2]
[341207886,1730646672649,-508.27974583,0.00037808,2]
[341207887,1730646672658,-691.73,0.00037808,2]
[341207888,1730646672668,-500.0,0.00037808,2]
[341207889,1730646672678,-769.94,0.00037808,2]
[341207890,1730646672773,-534.0,0.00037808,2]
[341207891,1730646672784,-506.32034915,0.00037808,2]
[341207892,1730646672793,-500.0,0.00037808,2]
[341207893,1730646672802,-500.0,0.00037808,2]
[341207894,1730646672812,-500.0,0.00037808,2]
[341207895,1730646672822,-151.0,0.00037808,7]
[341207896,1730646672831,-524.71911533,0.00037808,2]
[341207897,1730646672840,-500.0,0.00037808,2]
[341207898,1730646672854,-544.32583312,0.00037808,2]
[341207899,1730646672863,-563.49088167,0.00037808,2]
[341207900,1730646672873,-500.0,0.00037808,2]
[341207901,1730646672882,-522.56728714,0.00037808,2]
[341207902,1730646672891,-500.0,0.00037808,2]
[341207903,1730646672900,-520.73855508,0.00037808,2]
[341207904,1730646672910,-442.64058117,0.00037808,2]
[341207905,1730646672919,-500.0,0.00037808,2]
[341207906,1730646672929,-500.0,0.00037808,2]
[341207907,1730646672938,-500.0,0.00037808,2]
[341207908,1730646672947,-500.0,0.00037808,2]
[341207909,1730646672956,-500.0,0.00037808,2]
[341207910,1730646672966,-500.0,0.00037808,2]
[341207911,1730646672975,-500.0,0.00037808,2]
[341207912,1730646672985,-500.0,0.00037808,2]
[341207913,1730646672994,-500.0,0.00037808,2]
[341207914,1730646673003,-547.77754974,0.00037808,2]
[341207915,1730646673012,-500.0,0.00037808,2]
[341207916,1730646673021,-660.29,0.00037808,2]
[341207917,1730646673031,-500.0,0.00037808,2]
[341207918,1730646673040,-500.0,0.00037808,2]
[341207919,1730646673049,-648.63382564,0.00037808,2]
[341207920,1730646673058,-500.0,0.00037808,2]
[341207921,1730646673069,-500.0,0.00037808,2]
[341207922,1730646673078,-558.43549014,0.00037808,2]
[341207923,1730646673087,-428.26743085,0.00037808,2]
[341207924,1730646673098,-500.0,0.00037808,2]
[341207925,1730646673107,-500.0,0.00037808,2]
[341207926,1730646673116,-316.61444316,0.00037808,2]
[341207927,1730646673127,-500.0,0.00037808,2]
[341207928,1730646673136,-500.0,0.00037808,2]
[341207929,1730646673145,-500.0,0.00037808,2]
[341207930,1730646673155,-500.0,0.00037808,2]
[341207931,1730646673165,-550.98752945,0.00037808,2]
[341207932,1730646673174,-500.0,0.00037808,2]
[341207933,1730646673185,-151.0,0.00037808,7]
[341207934,1730646673194,-500.0,0.00037808,2]
[341207935,1730646673203,-532.42578151,0.00037808,2]
[341207936,1730646673213,-500.0,0.00037808,2]
[341207937,1730646673222,-684.44,0.00037808,2]
[341207938,1730646673231,-500.0,0.00037808,2]
[341207939,1730646673241,-1041.69122434,0.00037808,2]
[341207940,1730646673250,-543.93854312,0.00037808,2]
[341207941,1730646673259,-500.0,0.00037808,2]
[341207942,1730646673268,-500.0,0.00037808,2]
[341207943,1730646673277,-509.34500775,0.00037808,2]
[341207944,1730646673288,-500.0,0.00037808,2]
[341207945,1730646673300,-500.0,0.00037808,2]
[341207946,1730646673309,-500.0,0.00037808,2]
[341207947,1730646673318,-500.0,0.00037808,2]
[341207948,1730646673328,-500.0,0.00037808,2]
[341207949,1730646673337,-500.0,0.00037808,2]
[341207950,1730646673348,-187.85563192,0.00037808,2]
[341207951,1730646673358,-500.0,0.00037808,2]
[341207952,1730646673367,-500.0,0.00037808,2]
[341207953,1730646673377,-581.25011704,0.00037808,2]
[341207954,1730646673386,-500.0,0.00037808,2]
[341207955,1730646673395,-627.36,0.00037808,2]
[341207956,1730646673404,-3893.36,0.00037808,2]
[341207957,1730646673414,-500.0,0.00037808,2]
[341207958,1730646673423,-500.0,0.00037808,2]
[341207959,1730646673433,-175.831982,0.00037808,7]
[341207960,1730646673443,-500.0,0.00037808,2]
[341207961,1730646673453,-1238.57,0.00037808,2]
[341207962,1730646673462,-175.831982,0.00037808,7]
[341207963,1730646673471,-500.0,0.00037808,2]
[341207964,1730646673481,-1845.76,0.00037808,2]
[341207965,1730646673491,-557.23291484,0.00037808,2]
[341207966,1730646673501,-500.0,0.00037808,2]
[341207967,1730646673510,-579.10450337,0.00037808,2]
[341207968,1730646673520,-500.0,0.00037808,2]
[341207969,1730646673529,-500.0,0.00037808,2]
[341207970,1730646673540,-500.0,0.00037808,2]
[341207971,1730646673549,-532.59849698,0.00037808,2]
[341207972,1730646673559,-500.0,0.00037808,2]
[341207973,1730646673568,-500.0,0.00037808,2]
[341207974,1730646673578,-500.0,0.00037808,2]
[341207975,1730646673588,-963.64,0.00037808,2]
[341207976,1730646673600,-500.0,0.00037808,2]
[341207977,1730646673610,-500.0,0.00037808,2]
[341207978,1730646673621,-500.0,0.00037808,2]
[341207979,1730646673631,-521.80294102,0.00037808,2]
[341207980,1730646673640,-500.0,0.00037808,2]
[341207981,1730646673649,-500.0,0.00037808,2]
[341207982,1730646673659,-356.99384044,0.00037808,2]
[341207983,1730646673668,-500.0,0.00037808,2]
[341207984,1730646673677,-551.69225622,0.00037808,2]
[341207985,1730646673687,-500.0,0.00037808,2]
[341207986,1730646673696,-500.0,0.00037808,2]
[341207987,1730646673705,-500.0,0.00037808,2]
[341207988,1730646673714,-268.2572324,0.00037808,2]
[341207989,1730646673723,-763.17,0.00037808,2]
[341207990,1730646673732,-500.0,0.00037808,2]
[341207991,1730646673742,-500.0,0.00037808,2]
[341207992,1730646673751,-500.0,0.00037808,2]
[341207993,1730646673760,-239.0165423,0.00037808,2]
[341207994,1730646673769,-500.0,0.00037808,2]
[341207995,1730646673779,-5855.7,0.00037808,2]
[341207996,1730646673788,-1805.52,0.00037808,2]
[341207997,1730646673798,-506.21226215,0.00037808,2]
[341207998,1730646673807,-1176.28,0.00037808,2]
[341207999,1730646673816,-500.0,0.00037808,2]
[341208000,1730646673825,-602.78,0.00037808,2]
[341208001,1730646673834,-500.0,0.00037808,2]
[341208002,1730646673843,-500.0,0.00037808,2]
[341208003,1730646673855,-513.33592605,0.00037808,2]
[341208004,1730646673864,-500.0,0.00037808,2]
[341208005,1730646673873,-500.0,0.00037808,2]
[341208006,1730646673882,-500.0,0.00037808,2]
[341208007,1730646673890,-500.0,0.00037808,2]
[341208008,1730646673899,-222.60084314,0.00037808,2]
[341208009,1730646673908,-573.90879304,0.00037808,2]
[341208010,1730646673918,-553.06745938,0.00037808,2]
[341208011,1730646673927,-500.0,0.00037808,2]
[341208012,1730646673936,-500.0,0.00037808,2]
[341208013,1730646673945,-500.0,0.00037808,2]
[341208014,1730646673955,-500.0,0.00037808,2]
[341208015,1730646673964,-500.0,0.00037808,2]
[341208016,1730646673973,-500.0,0.00037808,2]
[341208017,1730646673982,-500.0,0.00037808,2]
[341208018,1730646673991,-500.0,0.00037808,2]
[341208019,1730646674000,-540.90759283,0.00037808,2]
[341208020,1730646674010,-618.47687195,0.00037808,2]
[341208021,1730646674019,-500.0,0.00037808,2]
[341208022,1730646674028,-542.15995045,0.00037808,2]
[341208023,1730646674038,-500.0,0.00037808,2]
[341208024,1730646674047,-500.0,0.00037808,2]
[341208025,1730646674056,-500.0,0.00037808,2]
[341208026,1730646674065,-500.0,0.00037808,2]
[341208027,1730646674075,-520.15796202,0.00037808,2]
[341208028,1730646674084,-183.39937491,0.00037808,2]